bitfinex-derivatives/quotes_BTCF0:USTF0_20251128
["timestamp","ask_amount","ask_price","bid_price","bid_amount"]
[1764323545397,0.4509158,91619.0,91618.0,0.04439]
[1764323546095,0.0509158,91619.0,91618.0,0.04439]
[1764323546394,0.4509158,91619.0,91618.0,0.04439]
[1764323546597,0.4509158,91619.0,91618.0,0.04639]
[1764323546797,0.2109158,91619.0,91618.0,0.04639]
[1764323547687,0.0109158,91619.0,91618.0,0.04639]
[1764323549393,0.50238513,91626.0,91618.0,0.04639]
[1764323549394,0.51330013,91626.0,91625.0,0.05754]
[1764323549600,0.87142962,91626.0,91625.0,0.05754]
[1764323551190,0.87142962,91626.0,91625.0,0.05854]
[1764323551890,0.87142962,91626.0,91625.0,0.03625]
[1764323552291,0.87142962,91626.0,91625.0,0.001]
[1764323552898,0.87142962,91626.0,91625.0,0.02315]
[1764323553704,0.87142962,91626.0,91625.0,0.04463]
[1764323555694,0.87142962,91626.0,91625.0,0.01613232]
[1764323556301,0.87142962,91626.0,91625.0,0.03828232]
[1764323556600,0.87142962,91626.0,91625.0,0.05976232]
[1764323557498,0.87142962,91626.0,91625.0,0.05876232]
[1764323557699,0.87142962,91626.0,91625.0,0.05976232]
[1764323558093,0.87142962,91626.0,91625.0,0.01513232]
[1764323558300,0.87142962,91626.0,91615.0,0.01315]
[1764323558301,0.0109162,91616.0,91615.0,0.05678]
[1764323558605,0.5928762,91616.0,91615.0,0.05678]
[1764323559404,0.5928762,91616.0,91615.0,0.05978]
[1764323560001,0.4209162,91616.0,91615.0,0.05978]
[1764323560203,0.5928762,91616.0,91615.0,0.05978]
[1764323560597,0.5928762,91616.0,91615.0,0.07495823]
[1764323560797,0.5928762,91616.0,91615.0,0.07395823]
[1764323564996,0.62080405,91616.0,91615.0,0.07395823]
[1764323567908,0.62080732,91616.0,91615.0,0.07395823]
[1764323570411,0.62080732,91616.0,91615.0,0.07295823]
[1764323570909,0.21080732,91616.0,91615.0,0.07295823]
[1764323571215,0.58080732,91616.0,91615.0,0.07295823]
[1764323571812,0.39793112,91616.0,91615.0,0.08387453]
[1764323572012,0.19989112,91616.0,91615.0,0.08387453]
[1764323573202,0.19989112,91616.0,91615.0,0.07295823]
[1764323573610,0.02793112,91616.0,91615.0,0.42295823]
[1764323575913,0.0109156,91621.0,91620.0,0.05629]
[1764323576313,0.03889035,91621.0,91620.0,0.05629]
[1764323576720,0.03889035,91621.0,91620.0,0.0672057]
[1764323578123,0.02797475,91621.0,91620.0,0.0672057]
[1764323579123,0.02797475,91621.0,91620.0,0.05629]
[1764323581719,0.00016372,91627.0,91626.0,0.04485]
[1764323582024,3.72e-06,91627.0,91626.0,0.39485]
[1764323588230,0.3717139,91635.0,91634.0,0.04286]
[1764323589032,0.3717139,91635.0,91634.0,0.053774]
[1764323590134,0.3628,91635.0,91634.0,0.053774]
[1764323590334,0.3747139,91635.0,91634.0,0.053774]
[1764323590934,0.3638,91635.0,91634.0,0.053774]
[1764323595527,0.003,91635.0,91634.0,0.834574]
[1764323595742,0.00027279,91646.0,91645.0,0.0679727]
[1764323595931,0.00027279,91646.0,91645.0,0.4287727]
[1764323597144,0.00027279,91646.0,91645.0,0.4347727]
[1764323602245,0.01118539,91646.0,91645.0,0.4347727]
[1764323602642,0.00027279,91646.0,91645.0,0.4347727]
[1764323604148,0.00027279,91646.0,91645.0,0.45102082]
[1764323605443,0.01118539,91646.0,91645.0,0.45102082]
[1764323609747,0.00027279,91646.0,91645.0,0.45102082]
[1764323614850,0.02811356,91646.0,91645.0,0.45102082]
[1764323633271,0.02811356,91646.0,91645.0,0.09022082]
[1764323633469,0.02811356,91646.0,91645.0,0.45102082]
[1764323640471,0.02811356,91646.0,91645.0,0.09022082]
[1764323640670,0.02811356,91646.0,91645.0,0.45102082]
[1764323646372,0.02811356,91646.0,91645.0,0.09022082]
[1764323646574,0.02811356,91646.0,91645.0,0.45102082]
[1764323648579,0.44811356,91646.0,91645.0,0.45102082]
[1764323660176,0.14811356,91646.0,91645.0,0.45102082]
[1764323660988,0.14811356,91646.0,91645.0,0.09022082]
[1764323661289,0.14811356,91646.0,91645.0,0.45102082]
[1764323661586,0.45811356,91646.0,91645.0,0.45102082]
[1764323663087,0.20811356,91646.0,91645.0,0.45102082]
[1764323663289,0.46811356,91646.0,91645.0,0.45102082]
[1764323670790,0.02811356,91646.0,91645.0,0.45102082]
[1764323675484,3.56e-06,91646.0,91645.0,0.45102082]
[1764323675683,0.40434,91658.0,91657.0,0.0551213]
[1764323675883,0.81434,91658.0,91657.0,0.0551213]
[1764323676784,0.81734,91658.0,91657.0,0.0551213]
[1764323683094,0.81734,91658.0,91657.0,0.0723269]
[1764323687399,0.8282512,91658.0,91657.0,0.0723269]
[1764323687594,0.855662,91658.0,91657.0,0.0723269]
[1764323687801,1.027542,91658.0,91657.0,0.0723269]
[1764323688791,1.027542,91658.0,91657.0,0.0172056]
[1764323688996,1.027542,91658.0,91656.0,0.0109114]
[1764323689205,0.0709508,91657.0,91656.0,0.0109114]
[1764323689393,0.4809508,91657.0,91656.0,0.0109114]
[1764323690395,0.4839508,91657.0,91656.0,0.0109114]
[1764323691603,0.04354,91646.0,91645.0,0.4159227]
[1764323691902,0.6528308,91646.0,91645.0,0.4159227]
[1764323692901,0.6558308,91646.0,91645.0,0.43184383]
[1764323693802,0.4618608,91646.0,91645.0,0.43184383]
[1764323694104,0.003,91646.0,91645.0,0.43184383]
[1764323701805,0.04656,91646.0,91645.0,0.43184383]
[1764323702000,0.47656,91646.0,91645.0,0.43184383]
[1764323704895,0.50392262,91646.0,91645.0,0.43184383]
[1764323707500,0.40036262,91646.0,91645.0,0.43184383]
[1764323707695,0.03036262,91646.0,91645.0,0.43184383]
[1764323708008,0.51426262,91646.0,91645.0,0.43184383]
[1764323714902,0.4869,91646.0,91645.0,0.43184383]
[1764323715704,0.1269,91646.0,91645.0,0.43184383]
[1764323715904,0.4469,91646.0,91645.0,0.43184383]
[1764323718319,0.4742749,91646.0,91645.0,0.43184383]
[1764323719919,0.1321649,91646.0,91645.0,0.43184383]
[1764323720111,0.4835049,91646.0,91645.0,0.43184383]
[1764323722321,0.4835049,91646.0,91645.0,0.07104383]
[1764323722520,0.4835049,91646.0,91645.0,0.43184383]
[1764323724529,0.1621649,91646.0,91645.0,0.43184383]
[1764323725223,0.1403749,91646.0,91645.0,0.43184383]
[1764323726219,0.0303749,91646.0,91645.0,0.43184383]
[1764323728520,0.003,91646.0,91645.0,0.43184383]
[1764323728726,0.003,91646.0,91645.0,0.78184383]
[1764323732020,0.3608,91658.0,91657.0,0.0536013]
[1764323732225,0.82819633,91658.0,91657.0,0.0536013]
[1764323733123,0.83119633,91658.0,91657.0,0.0536013]
[1764323733427,0.443,91658.0,91657.0,0.0536013]
[1764323733616,0.46437,91658.0,91657.0,0.0536013]
[1764323734927,0.49175817,91658.0,91657.0,0.0536013]
[1764323735130,0.51419817,91658.0,91657.0,0.0536013]
[1764323735427,0.48681,91658.0,91657.0,0.0536013]
[1764323737429,0.48681,91658.0,91657.0,0.06948776]
[1764323754236,0.48681,91658.0,91657.0,0.02679776]
[1764323754643,0.51399689,91658.0,91657.0,0.02679776]
[1764323757647,0.51400166,91658.0,91657.0,0.02679776]
[1764323762752,0.51400166,91658.0,91657.0,0.07118776]
[1764323765254,0.51400166,91658.0,91657.0,0.02679776]
[1764323766158,0.68584166,91658.0,91657.0,0.07103776]
[1764323772160,0.68584166,91658.0,91657.0,0.02679776]
[1764323772854,0.68584166,91658.0,91657.0,0.01588646]
[1764323773053,0.05611,91653.0,91652.0,0.0109118]
[1764323773247,0.50330166,91653.0,91652.0,0.0109118]
[1764323773863,0.055792,91651.0,91650.0,0.3608]
[1764323774060,0.50298366,91651.0,91650.0,0.3608]
[1764323774368,0.50298366,91651.0,91650.0,0.3717121]
[1764323776060,0.50298366,91651.0,91650.0,0.3868045]
[1764323777450,0.50298366,91651.0,91650.0,0.4101045]
[1764323777858,0.50298366,91651.0,91650.0,0.3868045]
[1764323780666,0.50298366,91651.0,91650.0,0.4319745]
[1764323780856,0.50298366,91651.0,91650.0,0.4210624]
[1764323781364,0.50298366,91651.0,91650.0,0.3991924]
[1764323781770,0.05065,91640.0,91619.0,0.09820061]
[1764323782062,0.05065,91640.0,91608.0,0.0137]
[1764323782063,0.04362,91619.0,91618.0,0.04517]
[1764323782362,0.04362,91613.0,91612.0,0.0697866]
[1764323782562,0.47362,91613.0,91612.0,0.0697866]
[1764323782866,0.47362,91613.0,91612.0,0.05887]
[1764323783265,0.47362,91613.0,91612.0,0.04517]
[1764323783470,0.47362,91613.0,91612.0,0.0233]
[1764323783658,0.04362,91609.0,91608.0,0.04517]
[1764323783866,0.6055,91609.0,91608.0,0.04517]
[1764323785167,0.6055,91609.0,91608.0,0.05317]
[1764323785469,0.6055,91609.0,91608.0,0.06902777]
[1764323788167,0.3608,91614.0,91613.0,0.04517]
[1764323788469,0.9546764,91614.0,91613.0,0.04517]
[1764323788665,0.9772164,91614.0,91613.0,0.04517]
[1764323789262,0.9772164,91614.0,91613.0,0.05317]
[1764323791972,0.5853364,91614.0,91613.0,0.05317]
[1764323792174,0.7572564,91614.0,91613.0,0.05317]
[1764323792473,1.0172564,91614.0,91613.0,0.05317]
[1764323794767,0.8453364,91614.0,91613.0,0.05317]
[1764323794968,1.0172564,91614.0,91613.0,0.05317]
[1764323795476,1.0172564,91614.0,91613.0,0.05347]
[1764323797474,0.7672564,91614.0,91613.0,0.05347]
[1764323798580,1.0272564,91614.0,91613.0,0.05347]
[1764323799471,0.8072564,91614.0,91613.0,0.0643865]
[1764323799871,0.8072564,91614.0,91613.0,0.05347]
[1764323801976,0.6353364,91614.0,91613.0,0.05347]
[1764323802176,0.8072564,91614.0,91613.0,0.05347]
[1764323804676,0.83870028,91614.0,91613.0,0.05347]
[1764323811085,0.83870028,91614.0,91613.0,0.05125]
[1764323813286,0.83870028,91614.0,91613.0,0.008]
[1764323813484,0.83870028,91614.0,91613.0,0.05125]
[1764323816986,0.83870028,91614.0,91613.0,0.008]
[1764323817192,0.83870028,91614.0,91613.0,0.02908]
[1764323817390,0.83870028,91614.0,91613.0,0.05125]
[1764323821397,0.83870028,91614.0,91613.0,0.008]
[1764323821601,0.66678028,91614.0,91613.0,0.008]
[1764323821897,0.83870028,91614.0,91613.0,0.008]
[1764323822092,0.83870028,91614.0,91613.0,0.02957]
[1764323822293,0.83870028,91614.0,91613.0,0.05204]
[1764323826602,0.83870028,91614.0,91613.0,0.008]
[1764323829008,0.055427,91609.0,91608.0,0.01485777]
[1764323829309,0.055427,91609.0,91606.0,0.00027291]
[1764323829310,0.0554272,91607.0,91606.0,0.00027291]
[1764323829504,1.04959108,91607.0,91606.0,0.00027291]
[1764323830504,1.04959108,91607.0,91606.0,0.00827291]
[1764323832010,1.04959108,91607.0,91606.0,0.02335908]
[1764323835620,1.41039108,91607.0,91606.0,0.02335908]
[1764323836522,1.41039108,91607.0,91606.0,0.04552908]
[1764323838119,1.41039108,91607.0,91606.0,0.02335908]
[1764323839217,1.41039108,91607.0,91606.0,0.04552908]
[1764323841931,1.41039108,91607.0,91606.0,0.06772908]
[1764323843534,1.41039108,91607.0,91606.0,0.02335908]
[1764323846623,1.41039108,91607.0,91606.0,0.04552908]
[1764323848827,1.41039108,91607.0,91606.0,0.02335908]
[1764323856340,1.41039108,91607.0,91606.0,0.04530908]
[1764323857442,1.41039108,91607.0,91606.0,0.02335908]
[1764323861140,1.41039108,91607.0,91606.0,0.04530908]
[1764323862946,1.41039108,91607.0,91606.0,0.02335908]
[1764323866843,1.41039108,91607.0,91606.0,0.04530908]
[1764323867449,1.41039108,91607.0,91606.0,0.02335908]
[1764323867952,1.41039108,91607.0,91606.0,0.04530908]
[1764323870051,1.41039108,91607.0,91606.0,0.02335908]
[1764323871654,0.68879108,91607.0,91606.0,0.02335908]
[1764323871955,1.41039108,91607.0,91606.0,0.02335908]
[1764323873959,1.41039108,91607.0,91606.0,0.06694908]
[1764323878562,1.41039108,91607.0,91606.0,0.02335908]
[1764323878761,1.41039108,91607.0,91606.0,0.06694908]
[1764323882561,0.68879108,91607.0,91606.0,0.06694908]
[1764323882757,1.41039108,91607.0,91606.0,0.06694908]
[1764323884560,1.40039108,91607.0,91606.0,0.06694908]
[1764323894571,1.40039108,91607.0,91606.0,0.07786648]
[1764323895276,1.40039108,91607.0,91606.0,0.06694908]
[1764323903581,1.40039108,91607.0,91606.0,0.02335908]
[1764323904181,1.40039108,91607.0,91606.0,0.04647908]
[1764323904780,1.40039108,91607.0,91606.0,0.06862908]
[1764323906574,0.67879108,91607.0,91606.0,0.06862908]
[1764323906782,1.40039108,91607.0,91606.0,0.06862908]
[1764323913302,0.67879108,91607.0,91606.0,0.06862908]
[1764323913500,1.40039108,91607.0,91606.0,0.06862908]
[1764323913899,1.40039108,91607.0,91606.0,0.08242908]
[1764323917507,1.40039108,91607.0,91606.0,0.06862908]
[1764323918103,1.38947388,91607.0,91606.0,0.07954648]
[1764323919803,1.38947388,91607.0,91606.0,0.06862908]
[1764323924312,1.02947388,91607.0,91606.0,0.08242908]
[1764323924510,0.99755388,91607.0,91606.0,0.08242908]
[1764323924703,0.3608,91620.0,91606.0,0.08242908]
[1764323924909,0.69369,91620.0,91619.0,0.0537258]
[1764323925209,0.56801,91620.0,91619.0,0.0537258]
[1764323926116,0.56801,91620.0,91619.0,0.0547258]
[1764323928820,0.57561,91620.0,91619.0,0.0547258]
[1764323931324,0.57561,91620.0,91619.0,0.06799054]
[1764323932119,0.40369,91620.0,91619.0,0.06799054]
[1764323934627,0.4146057,91620.0,91619.0,0.06799054]
[1764323935023,0.40369,91620.0,91619.0,0.06799054]
[1764323942625,0.3608,91620.0,91619.0,0.06799054]
[1764323944830,0.3608,91620.0,91619.0,0.49799054]
[1764323945632,0.02194372,91622.0,91621.0,0.04556]
[1764323946123,0.02194372,91622.0,91621.0,0.4764756]
[1764323946124,0.00016372,91622.0,91621.0,0.4764756]
[1764323947123,0.00016372,91622.0,91621.0,0.4774756]
[1764323948530,0.00016372,91622.0,91621.0,0.2074756]
[1764323949234,0.00016372,91622.0,91621.0,0.4774756]
[1764323949629,0.00016372,91622.0,91621.0,0.0574756]
[1764323949828,0.04464372,91622.0,91621.0,0.0574756]
[1764323953935,0.00016372,91622.0,91621.0,0.0574756]
[1764323957329,0.02261372,91622.0,91621.0,0.0574756]
[1764323957635,0.04393372,91622.0,91621.0,0.0574756]
[1764323960337,0.02261372,91622.0,91621.0,0.0574756]
[1764323960537,0.00016372,91622.0,91621.0,0.0574756]
[1764323963237,0.02261372,91622.0,91621.0,0.0574756]
[1764323963435,0.00016372,91622.0,91621.0,0.0574756]
[1764323966846,0.04393372,91622.0,91621.0,0.0574756]
[1764323968347,0.00016372,91622.0,91621.0,0.0574756]
[1764323969148,0.04393372,91622.0,91621.0,0.0574756]
[1764323969843,0.02261372,91622.0,91621.0,0.0574756]
[1764323970743,0.00016372,91622.0,91621.0,0.0574756]
[1764323971956,0.02261372,91622.0,91621.0,0.0574756]
[1764323973238,0.04499372,91622.0,91621.0,0.0574756]
[1764323973548,0.00016372,91622.0,91621.0,0.0574756]
[1764323973851,2e-08,91622.0,91621.0,0.4574756]
[1764323974047,0.40472,91636.0,91635.0,0.0673439]
[1764323974240,0.4325729,91636.0,91635.0,0.4873439]
[1764323974449,0.3886529,91636.0,91635.0,0.4873439]
[1764323974947,0.4325729,91636.0,91635.0,0.1773439]
[1764323975149,0.4355729,91636.0,91635.0,0.1773439]
[1764323975449,0.40772,91636.0,91635.0,0.1773439]
[1764323977759,0.003,91636.0,91635.0,0.4773439]
[1764323977948,0.14165474,91650.0,91649.0,0.0109122]
[1764323978149,0.04392,91650.0,91649.0,0.0544722]
[1764323979156,0.02154,91650.0,91649.0,0.0544722]
[1764323979354,0.004,91650.0,91649.0,0.0544722]
[1764323982549,0.02554,91650.0,91649.0,0.0544722]
[1764323983153,0.004,91650.0,91649.0,0.0544722]
[1764323985063,0.004,91650.0,91649.0,0.06722059]
[1764323998075,0.04792,91650.0,91649.0,0.06722059]
[1764323998263,0.004,91650.0,91649.0,0.06722059]
[1764324001069,0.04792,91650.0,91649.0,0.06722059]
[1764324002068,0.44039,91650.0,91649.0,0.02366059]
[1764324002579,0.42792,91650.0,91649.0,0.02366059]
[1764324002778,0.42792,91650.0,91649.0,0.06910059]
[1764324003181,0.13792,91650.0,91649.0,0.06910059]
[1764324003875,0.04792,91650.0,91649.0,0.06910059]
[1764324011489,0.4588321,91650.0,91649.0,0.02366059]
[1764324011784,0.04792,91650.0,91649.0,0.06910059]
[1764324012191,0.45627745,91650.0,91649.0,0.01274839]
[1764324012387,0.04519,91641.0,91640.0,0.0583]
[1764324012686,0.04519,91641.0,91640.0,0.0563533]
[1764324013481,0.04519,91641.0,91640.0,0.0692133]
[1764324013682,0.04519,91641.0,91640.0,0.08177061]
[1764324014186,0.02333,91641.0,91640.0,0.08177061]
[1764324014496,0.40489,91645.0,91644.0,0.0694928]
[1764324014685,0.3608,91645.0,91644.0,0.0694928]
[1764324015088,0.40489,91645.0,91644.0,0.0694928]
[1764324015391,0.43215587,91645.0,91644.0,0.0694928]
[1764324015595,0.43315587,91645.0,91644.0,0.0694928]
[1764324021897,0.43312593,91645.0,91644.0,0.0694928]
[1764324023191,0.43312593,91645.0,91644.0,0.04516]
[1764324025399,0.40589,91645.0,91644.0,0.04516]
[1764324026893,0.04509,91645.0,91644.0,0.04516]
[1764324027098,0.40589,91645.0,91644.0,0.04516]
[1764324032110,0.40589,91645.0,91644.0,0.05886]
[1764324036807,0.40589,91645.0,91644.0,0.04516]
[1764324040314,0.43317303,91645.0,91644.0,0.04516]
[1764324043618,0.44408573,91645.0,91644.0,0.04516]
[1764324052822,0.04461,91644.0,91643.0,0.0551229]
[1764324053014,0.07189303,91644.0,91643.0,0.0551229]
[1764324054730,0.07289303,91644.0,91643.0,0.0551229]
[1764324056217,0.04461,91641.0,91640.0,0.01255731]
[1764324056407,0.0555249,91627.0,91626.0,0.03295862]
[1764324056613,0.08280793,91627.0,91626.0,0.05528862]
[1764324058213,0.08280793,91627.0,91626.0,0.06881972]
[1764324058412,0.08280793,91627.0,91626.0,0.07181972]
[1764324058920,0.08280793,91627.0,91626.0,0.06881972]
[1764324059124,0.08280793,91627.0,91626.0,0.06981972]
[1764324059624,0.07189303,91627.0,91626.0,0.08351972]
[1764324059829,0.07189303,91627.0,91626.0,0.08251972]
[1764324062015,0.07189303,91627.0,91626.0,0.08151972]
[1764324062212,0.07189303,91627.0,91626.0,0.08251972]
[1764324065320,0.04461,91627.0,91626.0,0.08251972]
[1764324071428,0.3608,91630.0,91629.0,0.0705446]
[1764324071726,0.18510062,91640.0,91639.0,0.0569334]
[1764324071932,0.04346,91640.0,91639.0,0.0569334]
[1764324074332,0.04646,91640.0,91639.0,0.0569334]
[1764324074938,0.04446,91640.0,91639.0,0.0569334]
[1764324075139,0.40526,91640.0,91639.0,0.0569334]
[1764324076542,0.3618,91640.0,91639.0,0.0569334]
[1764324076847,0.3618,91640.0,91639.0,0.2269334]
[1764324077548,0.3618,91640.0,91639.0,0.24080473]
[1764324079039,0.38453,91640.0,91639.0,0.24080473]
[1764324079638,0.3618,91640.0,91639.0,0.24080473]
[1764324080045,0.3618,91640.0,91639.0,0.19080473]
[1764324080542,0.3608,91651.0,91650.0,0.0540421]
[1764324081241,0.38353,91651.0,91650.0,0.0540421]
[1764324081846,0.38653,91651.0,91650.0,0.0540421]
[1764324085657,0.3638,91651.0,91650.0,0.0540421]
[1764324086455,0.38653,91651.0,91650.0,0.0540421]
[1764324086958,0.40985,91651.0,91650.0,0.06790179]
[1764324088051,0.003,91651.0,91650.0,0.06790179]
[1764324088250,0.003,91651.0,91650.0,0.42790179]
[1764324089065,0.3608,91659.0,91658.0,0.0540412]
[1764324090254,0.3618,91659.0,91658.0,0.0540412]
[1764324090760,0.3628,91659.0,91658.0,0.0540412]
[1764324091359,0.38553,91659.0,91658.0,0.0540412]
[1764324093257,0.40665,91659.0,91658.0,0.0540412]
[1764324095372,0.0109115,91655.0,91653.0,0.0109116]
[1764324095665,0.04235,91654.0,91653.0,0.0109116]
[1764324096066,0.04235,91654.0,91653.0,0.0338516]
[1764324096264,0.04235,91654.0,91653.0,0.0571216]
[1764324098267,0.04335,91654.0,91653.0,0.0571216]
[1764324100366,0.04335,91654.0,91653.0,0.071271]
[1764324103175,0.40415,91654.0,91653.0,0.071271]
[1764324105273,0.43147274,91654.0,91653.0,0.071271]
[1764324118978,0.43147274,91654.0,91653.0,0.085211]
[1764324125479,0.07067274,91654.0,91653.0,0.085211]
[1764324125680,0.43147274,91654.0,91653.0,0.085211]
[1764324128792,0.41035274,91654.0,91653.0,0.085211]
[1764324128992,0.3618,91654.0,91653.0,0.085211]
[1764324129185,0.001,91654.0,91653.0,0.495211]
[1764324132791,0.04618,91654.0,91653.0,0.495211]
[1764324134401,0.02399,91654.0,91653.0,0.495211]
[1764324134898,0.001,91654.0,91653.0,0.495211]
[1764324137703,0.02428,91654.0,91653.0,0.495211]
[1764324138500,0.02428,91654.0,91653.0,0.135211]
[1764324138712,0.04701,91654.0,91653.0,0.135211]
[1764324139506,0.02428,91654.0,91653.0,0.135211]
[1764324142607,0.001,91654.0,91653.0,0.135211]
[1764324143108,0.02428,91654.0,91653.0,0.135211]
[1764324143807,0.04701,91654.0,91653.0,0.135211]
[1764324144112,0.04701,91654.0,91653.0,0.071271]
[1764324145305,0.0742739,91654.0,91653.0,0.071271]
[1764324149215,0.0742739,91654.0,91653.0,0.0603594]
[1764324149421,0.4350739,91654.0,91653.0,0.0141494]
[1764324149721,0.04601,91650.0,91649.0,0.00016372]
[1764324149916,0.454186,91650.0,91649.0,0.00016372]
[1764324150119,0.814986,91650.0,91649.0,0.00016372]
[1764324150620,0.0569237,91638.0,91637.0,0.02147]
[1764324150819,0.04601,91632.0,91631.0,0.02147]
[1764324151115,0.04601,91629.0,91628.0,0.04781012]
[1764324151318,0.8840739,91629.0,91628.0,0.01542542]
[1764324151520,0.04626,91617.0,91616.0,0.04373]
[1764324151714,0.04515,91613.0,91612.0,0.05752]
[1764324152016,0.0723835,91613.0,91612.0,0.0684366]
[1764324152220,0.04515,91613.0,91612.0,0.0684366]
[1764324153422,0.47515,91613.0,91612.0,0.0339166]
[1764324154121,0.47515,91613.0,91612.0,0.0631766]
[1764324155220,0.47515,91613.0,91612.0,0.07790471]
[1764324158821,0.83595,91613.0,91612.0,0.07790471]
[1764324161619,0.83595,91613.0,91612.0,0.07690471]
[1764324162423,0.83595,91613.0,91612.0,0.06598811]
[1764324162926,0.83595,91613.0,91612.0,0.04372811]
[1764324163120,0.83595,91613.0,91612.0,0.02172811]
[1764324163329,0.83595,91613.0,91612.0,0.00619871]
[1764324163624,0.04515,91607.0,91604.0,0.0101]
[1764324163818,0.9587472,91607.0,91606.0,0.01512379]
[1764324164122,0.9587472,91607.0,91606.0,0.00027291]
[1764324164718,0.9587472,91607.0,91606.0,0.00927291]
[1764324173033,0.9587472,91607.0,91606.0,0.02407382]
[1764324173635,0.9587472,91607.0,91597.0,0.0109184]
[1764324173636,0.0560683,91598.0,91597.0,0.0109184]
[1764324173837,0.9687883,91598.0,91597.0,0.0329184]
[1764324174237,0.9687883,91598.0,91597.0,0.0551784]
[1764324174728,0.95787,91598.0,91597.0,0.0551784]
[1764324174930,0.95787,91598.0,91597.0,0.0561784]
[1764324176027,0.95787,91598.0,91597.0,0.05026]
[1764324176334,0.95787,91598.0,91597.0,0.006]
[1764324176637,0.95787,91598.0,91597.0,0.05026]
[1764324177433,0.95787,91598.0,91597.0,0.06511444]
[1764324178635,0.95787,91598.0,91597.0,0.04285444]
[1764324178841,0.95787,91598.0,91597.0,0.02085444]
[1764324179044,0.95787,91598.0,91597.0,0.06511444]
[1764324180242,0.95787,91598.0,91597.0,0.04285444]
[1764324180539,0.98523914,91598.0,91597.0,0.06511444]
[1764324181636,0.81331914,91598.0,91597.0,0.06511444]
[1764324181939,0.98523914,91598.0,91597.0,0.06511444]
[1764324184436,0.98523914,91598.0,91597.0,0.04240444]
[1764324184633,0.98523914,91598.0,91597.0,0.06397444]
[1764324187948,0.98523914,91598.0,91572.0,0.05624]
[1764324187949,0.0379,91573.0,91572.0,0.05624]
[1764324188149,0.3987,91573.0,91572.0,0.05624]
[1764324189145,0.3987,91573.0,91572.0,0.06424]
[1764324189647,0.3987,91573.0,91572.0,0.05624]
[1764324189843,0.4027,91573.0,91572.0,0.05624]
[1764324191633,0.38375,91573.0,91572.0,0.42624]
[1764324191838,0.3648,91573.0,91572.0,0.42624]
[1764324193947,0.38375,91573.0,91572.0,0.05624]
[1764324194146,0.4027,91573.0,91572.0,0.05624]
[1764324194541,0.3648,91573.0,91572.0,0.05624]
[1764324195548,0.38375,91573.0,91572.0,0.05624]
[1764324195944,0.4027,91573.0,91572.0,0.05624]
[1764324199241,0.37975,91573.0,91572.0,0.05624]
[1764324199449,0.38575,91573.0,91572.0,0.05624]
[1764324199956,0.4047,91573.0,91572.0,0.05624]
[1764324207465,0.03806372,91582.0,91581.0,0.0548503]
[1764324208568,0.04706372,91582.0,91581.0,0.0548503]
[1764324209069,0.04406372,91582.0,91581.0,0.0548503]
[1764324211270,0.04106372,91582.0,91581.0,0.0548503]
[1764324211666,0.03806372,91582.0,91581.0,0.0548503]
[1764324211866,0.04106372,91582.0,91581.0,0.0548503]
[1764324215862,0.01895,91577.0,91576.0,0.0467709]
[1764324216072,0.0379,91577.0,91576.0,0.0894809]
[1764324217671,0.0399,91577.0,91576.0,0.0894809]
[1764324218762,0.4109,91577.0,91576.0,0.0567609]
[1764324219269,0.4109,91577.0,91576.0,0.0705109]
[1764324220173,0.0409,91577.0,91576.0,0.0705109]
[1764324220373,0.02195,91577.0,91576.0,0.0705109]
[1764324220979,0.02195,91577.0,91576.0,0.08614813]
[1764324221579,0.003,91577.0,91576.0,0.48614813]
[1764324221879,0.00016372,91582.0,91581.0,0.0567603]
[1764324222080,0.00016372,91582.0,91581.0,0.4067603]
[1764324222578,0.00016372,91582.0,91576.0,0.04030813]
[1764324222579,0.0379,91577.0,91576.0,0.01563723]
[1764324222779,0.06,91577.0,91576.0,0.04584]
[1764324222973,0.0379,91580.0,91579.0,0.04584]
[1764324224874,0.0409,91580.0,91579.0,0.04584]
[1764324226189,0.0379,91576.0,91575.0,0.05959]
[1764324226378,0.0488209,91576.0,91575.0,0.05959]
[1764324226573,0.0488209,91576.0,91575.0,0.02271]
[1764324226884,0.4788209,91576.0,91575.0,0.02271]
[1764324227086,0.4788209,91576.0,91575.0,0.04584]
[1764324227586,0.4798209,91576.0,91575.0,0.04584]
[1764324228686,0.4818209,91576.0,91575.0,0.04584]
[1764324231580,0.4818209,91576.0,91575.0,0.05959]
[1764324231783,0.1718209,91576.0,91575.0,0.05959]
[1764324231984,0.003,91576.0,91575.0,0.05959]
[1764324232490,0.02195,91576.0,91575.0,0.05959]
[1764324232693,0.003,91576.0,91575.0,0.05959]
[1764324233292,0.02195,91576.0,91575.0,0.05959]
[1764324233793,0.0409,91576.0,91575.0,0.05959]
[1764324235485,0.02195,91576.0,91575.0,0.05959]
[1764324236096,0.0409,91576.0,91575.0,0.05959]
[1764324236302,0.0409,91576.0,91575.0,0.44959]
[1764324240598,0.0518209,91576.0,91575.0,0.44959]
[1764324241196,0.0518209,91576.0,91575.0,0.10959]
[1764324242199,0.003,91576.0,91575.0,0.43959]
[1764324242594,0.36096372,91582.0,91575.0,0.43959]
[1764324242793,0.36096372,91582.0,91581.0,0.0546703]
[1764324243498,0.37991372,91582.0,91581.0,0.0546703]
[1764324243894,0.39886372,91582.0,91581.0,0.0546703]
[1764324244101,0.40186372,91582.0,91581.0,0.0546703]
[1764324244702,0.39886372,91582.0,91581.0,0.0546703]
[1764324245995,0.40978392,91582.0,91581.0,0.0330303]
[1764324246194,0.40978392,91582.0,91581.0,0.0340303]
[1764324246394,0.40978392,91582.0,91581.0,0.0556703]
[1764324247200,0.40978392,91582.0,91581.0,0.02311]
[1764324247496,0.40978392,91582.0,91581.0,0.02211]
[1764324247703,0.43703543,91582.0,91581.0,0.02211]
[1764324249302,0.0488205,91580.0,91579.0,0.0330305]
[1764324249603,0.0488205,91580.0,91579.0,0.07074981]
[1764324250902,0.0508205,91580.0,91579.0,0.07074981]
[1764324256204,0.0488205,91580.0,91579.0,0.07074981]
[1764324256404,0.0498205,91580.0,91579.0,0.07074981]
[1764324257105,0.0389,91580.0,91579.0,0.07074981]
[1764324261812,0.001,91580.0,91579.0,0.44074981]
[1764324266908,3.72e-06,91582.0,91581.0,0.0553803]
[1764324267111,0.3608,91596.0,91595.0,0.0553787]
[1764324267911,0.38091,91596.0,91595.0,0.0553787]
[1764324268815,0.40102,91596.0,91595.0,0.0553787]
[1764324269413,0.40202,91596.0,91595.0,0.0553787]
[1764324271516,0.40102,91596.0,91595.0,0.0563787]
[1764324273009,0.40102,91596.0,91595.0,0.07316196]
[1764324273603,0.8319385,91596.0,91595.0,0.01778326]